fUST/lending_fUST_20250402
["ID","MTS","AMOUNT","RATE_DAILY","PERIOD"]
[356997178,1743549041245,-500.0,0.0002265,2]
[356997179,1743549041259,-614.26982477,0.0002265,2]
[356997180,1743549041269,-500.0,0.0002265,2]
[356997181,1743549041279,-500.86846009,0.0002265,2]
[356997182,1743549041289,-601.91006986,0.0002265,2]
[356997183,1743549041299,-6697.44000984,0.00022659,4]
[356997184,1743549041309,-200.0,0.0002269,8]
[356997185,1743549041319,-500.0,0.00022739,2]
[356997186,1743549041330,-551.0,0.00022739,2]
[356997187,1743549041340,-500.0,0.00022739,2]
[356997188,1743549041351,-574.0,0.00022739,2]
[356997189,1743549041362,-252.33853995,0.00022739,2]
[356997190,1743549041372,-15978.48,0.00022739,2]
[356997191,1743549041383,-155.407213,0.00022739,7]
[356997192,1743549041394,-280.951246,0.00022739,7]
[356997193,1743549041404,-262.386501,0.00022739,2]
[356997194,1743549041414,-262.386501,0.00022739,2]
[356997195,1743549041424,-151.0,0.00022739,7]
[356997196,1743549041434,-151.0,0.00022739,7]
[356997197,1743549041444,-201.316074,0.00022739,7]
[356997198,1743549041454,-500.0,0.00022826,2]
[356997199,1743549041464,-500.0,0.00022827,2]
[356997200,1743549041475,-472.7554013,0.00022836,2]
[356997201,1743549041485,-1074.7993932,0.00022836,2]
[356997202,1743549041495,-500.0,0.00022876,2]
[356997203,1743549041505,-551.0,0.00022876,2]
[356997204,1743549041517,-500.0,0.00022876,2]
[356997205,1743549041528,-574.0,0.00022876,2]
[356997206,1743549041538,-711.19,0.00022887,2]
[356997207,1743549041548,-606.33,0.00022887,2]
[356997208,1743549041558,-780.35,0.00022887,2]
[356997209,1743549041568,-929.72,0.00022887,2]
[356997210,1743549041578,-500.0,0.00022902,2]
[356997211,1743549041587,-716.35,0.00022902,2]
[356997212,1743549041598,-500.0,0.00022902,2]
[356997213,1743549041607,-853.73,0.00022902,2]
[356997214,1743549041617,-806.1,0.00022904,2]
[356997215,1743549041627,-917.07,0.00022904,2]
[356997216,1743549041638,-500.0,0.00022919,2]
[356997217,1743549041648,-500.0,0.00022983,2]
[356997218,1743549041659,-500.0,0.00022983,2]
[356997219,1743549041669,-500.0,0.00022983,2]
[356997220,1743549041678,-500.0,0.00022983,2]
[356997221,1743549041688,-500.0,0.00022983,2]
[356997222,1743549041699,-501.3509495,0.00022983,2]
[356997223,1743549041709,-509.59253661,0.00022983,2]
[356997224,1743549041719,-500.98790136,0.00022983,2]
[356997225,1743549041729,-500.0,0.00022983,2]
[356997226,1743549041739,-542.71469197,0.00022983,2]
[356997227,1743549041749,-434.87450804,0.00022983,2]
[356997228,1743549041759,-518.54248024,0.00022983,2]
[356997229,1743549041770,-500.0,0.00022983,2]
[356997230,1743549041780,-452.03626924,0.00022983,2]
[356997231,1743549041790,-172.02544695,0.00022983,2]
[356997232,1743549041800,-500.0,0.00022983,2]
[356997233,1743549041811,-500.0,0.00022983,2]
[356997234,1743549041821,-502.04355511,0.00022983,2]
[356997235,1743549041832,-500.0,0.00022983,2]
[356997236,1743549041842,-500.0,0.00022983,2]
[356997237,1743549041852,-500.0,0.00022983,2]
[356997238,1743549041862,-500.0,0.00022983,2]
[356997239,1743549041872,-500.0,0.00022983,2]
[356997240,1743549041882,-500.0,0.00022983,2]
[356997241,1743549041893,-500.0,0.00022983,2]
[356997242,1743549041903,-500.0,0.00022983,2]
[356997243,1743549041913,-500.0,0.00022983,2]
[356997244,1743549041923,-500.63955412,0.00022983,2]
[356997245,1743549041933,-650.0,0.00022983,2]
[356997246,1743549041943,-151.18036039,0.00022983,2]
[356997247,1743549041953,-500.0,0.00022983,2]
[356997248,1743549041963,-500.0,0.00022983,2]
[356997249,1743549041974,-160.0,0.00023,3]
[356997250,1743549041984,-418.94013069,0.00023,3]
[356997251,1743549041994,-500.0,0.00023013,2]
[356997252,1743549042005,-551.0,0.00023013,2]
[356997253,1743549042016,-500.0,0.00023013,2]
[356997254,1743549042027,-158.13472731,0.00023013,2]
[356997255,1743549042146,-428.15,0.000196,2]
[356997256,1743549042157,-415.86527269,0.00023013,2]
[356997257,1743549042167,-15978.62444335,0.00023013,2]
[356997258,1743549042179,-1779.30255958,0.00023028,2]
[356997259,1743549042190,-510.35074416,0.00023036,2]
[356997260,1743549042199,-300.0,0.00023062,2]
[356997261,1743549042210,-500.9883019,0.00023093,2]
[356997262,1743549042219,-151.0,0.000231,10]
[356997263,1743549042229,-500.0,0.0002315,2]
[356997264,1743549042239,-551.0,0.0002315,2]
[356997265,1743549042250,-500.0,0.0002315,2]
[356997266,1743549042260,-574.0,0.0002315,2]
[356997267,1743549042270,-711.19,0.00023161,2]
[356997268,1743549042282,-606.33,0.00023161,2]
[356997269,1743549042292,-780.35,0.00023161,2]
[356997270,1743549042303,-929.72,0.00023161,2]
[356997271,1743549042313,-500.0,0.00023176,2]
[356997272,1743549042323,-716.35,0.00023176,2]
[356997273,1743549042334,-500.0,0.00023176,2]
[356997274,1743549042344,-853.73,0.00023176,2]
[356997275,1743549042354,-806.1,0.00023178,2]
[356997276,1743549042365,-917.07,0.00023178,2]
[356997277,1743549042375,-500.0,0.00023287,2]
[356997278,1743549042386,-551.0,0.00023287,2]
[356997279,1743549042396,-574.0,0.00023287,2]
[356997280,1743549042407,-44402.69,0.000233,14]
[356997281,1743549042417,-19974.42508548,0.000233,14]
[356997284,1743549042666,-151.0,0.00022,7]
[356997285,1743549042677,-151.0,0.00022,7]
[356997286,1743549042687,-151.0,0.00022739,7]
[356997287,1743549042697,-151.0,0.00022739,7]
[356997293,1743549042804,-18157.84491452,0.000233,14]
[356997295,1743549042831,-500.0,0.00023311,2]
[356997296,1743549042841,-151.0,0.00023348,7]
[356997297,1743549042850,-151.0,0.00023348,7]
[356997299,1743549042860,-6697.44000984,0.00023348,4]
[356997301,1743549042869,-157.833036,0.0002338,3]
[356997303,1743549042878,-57694.1661544,0.000234,7]
[356997305,1743549042887,-160.0,0.000234,7]
[356997306,1743549042897,-262.386501,0.000234,2]
[356997308,1743549042907,-262.386501,0.000234,2]
[356997310,1743549042916,-151.0,0.000234,7]
[356997312,1743549042925,-151.0,0.000234,7]
[356997314,1743549042935,-500.0,0.00023424,2]
[356997316,1743549042945,-551.0,0.00023424,2]
[356997317,1743549042955,-574.0,0.00023424,2]
[356997318,1743549042965,-711.19,0.00023435,2]
[356997319,1743549042975,-606.33,0.00023435,2]
[356997320,1743549042984,-780.35,0.00023435,2]
[356997321,1743549042994,-929.72,0.00023435,2]
[356997322,1743549043004,-500.0,0.0002345,2]
[356997323,1743549043013,-716.35,0.0002345,2]
[356997325,1743549043022,-500.0,0.0002345,2]
[356997326,1743549043031,-853.73,0.0002345,2]
[356997327,1743549043041,-806.1,0.00023452,2]
[356997328,1743549043051,-917.07,0.00023452,2]
[356997329,1743549043060,-500.0,0.00023473,2]
[356997330,1743549043070,-174.38426618,0.000235,2]
[356997331,1743549043080,-650.12011307,0.00023561,2]
[356997332,1743549043090,-551.0,0.00023561,2]
[356997333,1743549043102,-574.0,0.00023561,2]
[356997334,1743549043112,-325.12370104,0.00023573,2]
[356997335,1743549043122,-31287.63814294,0.000236,14]
[356997336,1743549043173,-716.5618136,0.000236,14]
[356997341,1743549046026,-780.17586168,0.000236,14]
[356997342,1743549046151,-500.0,0.000236,14]
[356997343,1743549184119,166.593297,0.00013699,2]
[356997351,1743549603131,399.0406188,0.00014,3]
[356997424,1743550232837,-1741.38405739,0.00016,2]
[356997425,1743550232851,-10617.81966595,0.00018,2]
[356997426,1743550232863,-500.0,0.00018102,2]
[356997427,1743550232875,-500.0,0.00018102,2]
[356997428,1743550232886,-500.0,0.00018102,2]
[356997429,1743550232897,-500.0,0.00018102,2]
[356997430,1743550232908,-500.0,0.00018102,2]
[356997431,1743550232919,-500.0,0.00018102,2]
[356997432,1743550232931,-500.0,0.00018102,2]
[356997433,1743550232942,-500.0,0.00018102,2]
[356997434,1743550232954,-423.74046517,0.00018102,2]
[356997435,1743550232965,-500.0,0.00018102,2]
[356997436,1743550232976,-500.0,0.00018102,2]
[356997437,1743550232987,-500.0,0.00018102,2]
[356997438,1743550232999,-16449.2861963,0.00018103,2]
[356997439,1743550233011,-658.474098,0.00018161,2]
[356997440,1743550233023,-415.81956794,0.00018253,2]
[356997441,1743550233035,-160.0,0.00018255,2]
[356997442,1743550233046,-835.82398976,0.00018513,2]
[356997443,1743550233057,-160.0,0.00018513,2]
[356997444,1743550233068,-5357.95200793,0.000189,2]
[356997445,1743550233079,-1455.51286607,0.00018922,2]
[356997446,1743550233091,-200.0,0.00019055,2]
[356997447,1743550233104,-500.0,0.00019065,2]
[356997448,1743550233116,-500.0,0.00019065,2]
[356997449,1743550233128,-500.0,0.00019065,2]
[356997450,1743550233140,-500.0,0.00019065,2]
[356997451,1743550233150,-500.0,0.00019065,2]
[356997452,1743550233160,-500.0,0.00019065,2]
[356997453,1743550233170,-500.0,0.00019065,2]
[356997454,1743550233181,-500.0,0.00019066,2]
[356997455,1743550233190,-500.0,0.00019066,2]
[356997456,1743550233200,-500.0,0.00019066,2]
[356997457,1743550233400,-500.0,0.00019066,2]
[356997458,1743550233419,-500.0,0.00019066,2]
[356997459,1743550233429,-500.0,0.00019066,2]
[356997460,1743550233439,-500.0,0.00019066,2]
[356997461,1743550233449,-500.0,0.00019066,2]
[356997462,1743550233459,-500.0,0.00019066,2]
[356997463,1743550233469,-500.0,0.00019066,2]
[356997464,1743550233479,-500.0,0.00019067,2]
[356997465,1743550233490,-500.0,0.00019067,2]
[356997466,1743550233499,-500.0,0.00019339,2]
[356997467,1743550233510,-214.72,0.00019339,2]
[356997468,1743550233523,-306.62,0.00019339,2]
[356997469,1743550233532,-500.0,0.00019339,2]
[356997470,1743550233542,-500.0,0.00019339,2]
[356997471,1743550233553,-500.0,0.00019339,2]
[356997472,1743550233563,-153.2,0.00019339,2]
[356997473,1743550233573,-500.0,0.0001934,2]
[356997474,1743550233583,-500.0,0.0001934,2]
[356997475,1743550233595,-500.0,0.0001934,2]
[356997476,1743550233606,-500.0,0.0001934,2]
[356997477,1743550233616,-500.0,0.0001934,2]
[356997478,1743550233626,-500.0,0.0001934,2]
[356997479,1743550233636,-500.0,0.00019341,2]
[356997480,1743550233645,-1406.17717717,0.00019514,2]
[356997481,1743550233655,-200.0,0.00019603,2]
[356997482,1743550233665,-500.0,0.00019613,2]
[356997483,1743550233674,-500.0,0.00019613,2]
[356997484,1743550233684,-500.0,0.00019613,2]
[356997485,1743550233694,-500.0,0.00019613,2]
[356997486,1743550233704,-500.0,0.00019614,2]
[356997487,1743550233714,-500.0,0.00019614,2]
[356997488,1743550233723,-500.0,0.00019614,2]
[356997489,1743550233733,-500.0,0.00019614,2]
[356997490,1743550233742,-500.0,0.00019614,2]
[356997491,1743550233752,-500.0,0.00019614,2]
[356997492,1743550233762,-557.3241531,0.00019614,2]
[356997493,1743550233772,-500.0,0.00019615,2]
[356997494,1743550233781,-5357.95200787,0.00019624,2]
[356997495,1743550233791,-500.0,0.00019887,2]
[356997496,1743550233801,-500.0,0.00019887,2]
[356997497,1743550233811,-500.0,0.00019887,2]
[356997498,1743550233821,-500.0,0.00019887,2]
[356997499,1743550233831,-500.0,0.00019888,2]
[356997500,1743550233841,-500.0,0.00019888,2]
[356997501,1743550233853,-500.0,0.00019888,2]
[356997502,1743550233863,-500.0,0.00019888,2]
[356997503,1743550233873,-192.49,0.00019888,2]
[356997504,1743550233884,-500.0,0.00019888,2]
[356997505,1743550233894,-500.0,0.00019889,2]
[356997506,1743550233904,-500.0,0.00019894,2]
[356997507,1743550233914,-500.0,0.00019894,2]
[356997508,1743550233924,-500.0,0.00019911,2]
[356997509,1743550233935,-500.0,0.00019911,2]
[356997510,1743550233945,-573.03127866,0.0001996,2]
[356997511,1743550233955,-500.0,0.0001996,2]
[356997512,1743550233965,-500.0,0.0001996,2]
[356997513,1743550233978,-500.0,0.0001996,2]
[356997514,1743550233989,-500.0,0.0001996,2]
[356997515,1743550233999,-500.0,0.0001996,2]
[356997516,1743550234009,-500.0,0.0001996,2]
[356997517,1743550234019,-500.0,0.0001996,2]
[356997518,1743550234028,-500.0,0.00019965,2]
[356997519,1743550234038,-500.0,0.00019965,2]
[356997520,1743550234048,-500.0,0.00019965,2]
[356997521,1743550234058,-755.5,0.0002,2]
[356997522,1743550234067,-500.0,0.00020006,2]
[356997523,1743550234077,-500.0,0.00020006,2]
[356997524,1743550234087,-519.31581765,0.00020006,2]
[356997525,1743550234097,-500.0,0.00020012,2]
[356997526,1743550234107,-200.0,0.00020151,2]
[356997527,1743550234121,-500.0,0.00020161,2]
[356997528,1743550234130,-500.0,0.00020161,2]
[356997529,1743550234140,-500.0,0.00020161,2]
[356997530,1743550234150,-500.0,0.00020161,2]
[356997531,1743550234160,-500.0,0.00020162,2]
[356997532,1743550234170,-254.76596054,0.00020162,2]
[356997533,1743550234180,-500.0,0.00020162,2]
[356997534,1743550234190,-500.0,0.00020162,2]
[356997535,1743550234200,-500.0,0.00020162,2]
[356997536,1743550234213,-601.88,0.00020163,2]
[356997537,1743550234231,-5357.95200787,0.00020348,2]
[356997538,1743550234243,-500.0,0.00020435,2]
[356997539,1743550234253,-500.0,0.00020435,2]
[356997540,1743550234263,-500.0,0.00020435,2]
[356997541,1743550234273,-500.0,0.00020435,2]
[356997542,1743550234283,-500.0,0.00020436,2]
[356997543,1743550234293,-500.0,0.00020436,2]
[356997544,1743550234303,-500.0,0.00020436,2]
[356997545,1743550234312,-500.0,0.00020436,2]
[356997546,1743550234322,-500.0,0.00020697,2]
[356997547,1743550234332,-200.0,0.00020699,2]
[356997548,1743550234341,-500.0,0.00020709,2]
[356997549,1743550234353,-500.0,0.00020709,2]
[356997550,1743550234363,-500.0,0.00020709,2]
[356997551,1743550234373,-500.0,0.00020709,2]
[356997552,1743550234383,-500.0,0.0002071,2]
[356997553,1743550234393,-500.0,0.0002071,2]
[356997554,1743550234404,-500.0,0.0002071,2]
[356997555,1743550234413,-500.0,0.0002071,2]
[356997556,1743550234423,-500.0,0.00020983,2]
[356997557,1743550234433,-168.27402006,0.00020983,2]
[356997558,1743550234443,-500.0,0.00020983,2]
[356997559,1743550234453,-500.0,0.00020983,2]
[356997560,1743550234463,-500.0,0.00020984,2]
[356997561,1743550234473,-500.0,0.00020984,2]
[356997562,1743550234482,-500.0,0.00020984,2]
[356997563,1743550234492,-500.0,0.00020984,2]
[356997564,1743550234502,-401.0,0.00021004,2]
[356997565,1743550234512,-5357.95200787,0.00021072,3]
[356997566,1743550234524,-200.0,0.00021247,2]
[356997567,1743550234535,-500.0,0.00021257,2]
[356997568,1743550234545,-500.0,0.00021257,2]
[356997569,1743550234555,-500.0,0.00021257,2]
[356997570,1743550234565,-500.0,0.00021258,2]
[356997571,1743550234574,-500.0,0.00021258,2]
[356997572,1743550234584,-500.0,0.00021258,2]
[356997573,1743550234594,-500.0,0.00021258,2]
[356997574,1743550234607,-267.14,0.00021531,2]
[356997575,1743550234617,-182.1318136,0.00021531,2]
[356997576,1743550234627,-366.81610981,0.00021531,2]
[356997590,1743550238155,-133.18389019,0.00021531,2]
[356997591,1743550238167,-336.62,0.00021532,2]
[356997592,1743550238177,-298.29,0.00021532,2]
[356997593,1743550238187,-622.53,0.00021532,2]
[356997594,1743550238197,-500.0,0.00021532,2]
[356997595,1743550238208,-1406.17717715,0.00021669,2]
[356997596,1743550238218,-200.0,0.00021795,2]
[356997597,1743550238229,-5357.95200787,0.00021797,3]
[356997598,1743550238240,-500.0,0.00021805,2]
[356997599,1743550238250,-502.45,0.00021806,2]
[356997600,1743550238261,-500.0,0.00022079,2]
[356997601,1743550238271,-537.33912559,0.00022283,2]
[356997602,1743550238282,-200.0,0.00022343,2]
[356997603,1743550238293,-583.62,0.00022353,2]
[356997604,1743550238303,-5357.95200787,0.00022521,4]
[356997605,1743550238314,-200.0,0.0002269,8]
[356997606,1743550238324,-429.5,0.00022709,15]
[356997607,1743550238334,-349.8437166,0.00022865,2]
[356997608,1743550238344,-200.0,0.00022891,2]
[356997609,1743550238358,-418.94013069,0.00023,3]
[356997610,1743550238368,-1908.8441008,0.00023,2]
[356997611,1743550238379,-300.0,0.00023062,2]
[356997612,1743550238389,-5357.95200787,0.00023245,4]
[356997614,1743550238399,-200.0,0.000234,14]
[356997615,1743550238410,-200.0,0.00023439,2]
[356997616,1743550238421,-54.73345872,0.00023473,2]
[356997631,1743550243656,-792.64,0.00023473,2]
[356997644,1743550246315,-500.0,0.00023473,2]
[356997717,1743551432727,-189.84567996,0.000201,2]
[356997718,1743551432737,-679.95,0.000202,2]
[356997719,1743551432747,-329.237049,0.00020665,2]
[356997720,1743551432756,-401.0,0.00021351,2]
[356997721,1743551432766,-189.84567996,0.00021614,2]
[356997722,1743551432776,-186.53187125,0.00021617,2]
[356997723,1743551432786,-500.0,0.00021711,2]
[356997724,1743551432795,-500.0,0.00021711,2]
[356997725,1743551432805,-154.81758223,0.00021711,2]
[356997726,1743551432815,-316.2366919,0.00021711,2]
[356997727,1743551432825,-500.0,0.00021711,2]
[356997728,1743551432835,-500.0,0.00021711,2]
[356997729,1743551432844,-500.0,0.00021711,2]
[356997730,1743551432853,-500.0,0.00021711,2]
[356997731,1743551432863,-500.0,0.00021711,2]
[356997732,1743551432874,-500.0,0.00021711,2]
[356997733,1743551432885,-500.0,0.00021711,2]
[356997734,1743551432896,-500.0,0.00021711,2]
[356997735,1743551432907,-300.0,0.00021711,2]
[356997736,1743551432918,-31501.84438234,0.00021712,2]
[356997737,1743551432934,-18498.15561766,0.00021712,2]
[356997738,1743551432945,-500.0,0.00021714,2]
[356997739,1743551432957,-500.0,0.00021714,2]
[356997740,1743551432967,-500.0,0.00021714,2]
[356997741,1743551432979,-627.69027845,0.00021716,2]
[356997742,1743551432990,-12500.0,0.00021717,2]
[356997743,1743551433000,-570.79736141,0.00021717,2]
[356997744,1743551433010,-500.0,0.00021773,2]
[356997745,1743551433019,-500.0,0.00021773,2]
[356997746,1743551433030,-500.0,0.00021773,2]
[356997747,1743551433039,-500.0,0.00021773,2]
[356997748,1743551433049,-500.0,0.00021773,2]
[356997749,1743551433058,-500.0,0.00021773,2]
[356997750,1743551433068,-500.0,0.00021773,2]
[356997751,1743551433077,-500.0,0.00021773,2]
[356997752,1743551433087,-500.0,0.00021773,2]
[356997753,1743551433096,-500.0,0.000218,2]
[356997754,1743551433106,-595.39,0.00021988,2]
[356997755,1743551433116,-500.0,0.00021988,2]
[356997756,1743551433125,-355.39,0.00021988,2]
[356997757,1743551433136,-354.57,0.00022262,2]
[356997758,1743551433146,-966.7571214,0.00022563,2]
[356997759,1743551433155,-200.0,0.0002272,8]
[356997760,1743551433165,-262.3827874,0.00022865,2]
[356997761,1743551433174,-4226.94189515,0.000229,4]
[356997762,1743551433185,-363.25639985,0.00023359,2]
[356997763,1743551433194,-5648.19505438,0.00023364,2]
[356997764,1743551433203,-952.22557937,0.00023372,3]
[356997765,1743551433213,-5044.96201468,0.00023372,3]
[356997766,1743551433222,-500.0,0.00023373,2]
[356997767,1743551433232,-500.0,0.00023373,2]
[356997768,1743551433241,-500.0,0.00023373,2]
[356997769,1743551433251,-500.0,0.00023373,2]
[356997770,1743551433261,-500.0,0.00023373,2]
[356997771,1743551433270,-500.0,0.00023373,2]
[356997772,1743551433280,-500.0,0.00023373,2]
[356997773,1743551433290,-500.0,0.00023373,2]
[356997774,1743551433300,-282.15816139,0.00023373,2]
[356997775,1743551433309,-107353.25301946,0.00023373,2]
[356997790,1743551438746,-500.0,0.00021711,2]
[356997791,1743551438756,-500.0,0.00021711,2]
[356997792,1743551438766,-299.0,0.00021711,2]
[356997825,1743551444433,-201.0,0.00021711,2]
[356997826,1743551444444,-380.87268447,0.00021711,2]
[356997827,1743551444453,-2993.48798902,0.00023373,2]
[356997834,1743551446545,-2641.14957164,0.00023373,2]
[356997835,1743551446635,-695.44042931,0.00023373,2]
[356997844,1743551551542,200.0,0.00025,30]
[356997848,1743551923762,2890.0,0.00025,120]
[356997850,1743552160555,5000.0,0.00025,30]
[356997852,1743552328500,2000.0,0.00023287,30]
[356997853,1743552328823,218.61609808,0.00023287,30]
[356997875,1743552632688,-418.94013069,0.0001891,2]
[356997876,1743552632698,-160.0,0.00018911,2]
[356997877,1743552632708,-160.0,0.00018911,2]
[356997878,1743552632716,-3544.48713393,0.00018922,2]
[356997879,1743552632725,-164.618525,0.00019981,2]
[356997880,1743552632734,-611.96,0.000203,2]
[356997881,1743552632743,-4538.78132383,0.000209,3]
[356997882,1743552632752,-43375.53879993,0.0002097,2]
[356997883,1743552632761,-500.0,0.00020971,2]
[356997884,1743552632770,-500.0,0.00020971,2]
[356997885,1743552632779,-500.0,0.00020971,2]
[356997886,1743552632788,-182.87021827,0.00020971,2]
[356997887,1743552632796,-500.0,0.00020971,2]
[356997888,1743552632805,-500.0,0.00020971,2]
[356997889,1743552632814,-500.0,0.00020971,2]
[356997890,1743552632824,-500.0,0.00020971,2]
[356997892,1743552632832,-437.78793131,0.00020971,2]
[356997893,1743552632841,-500.0,0.00020971,2]
[356997894,1743552632850,-500.0,0.00020971,2]
[356997895,1743552632859,-500.0,0.00020971,2]
[356997896,1743552632868,-500.0,0.00020971,2]
[356997897,1743552632878,-500.0,0.00020971,2]
[356997898,1743552632887,-499.99999999,0.00020971,2]
[356997899,1743552632898,-500.0,0.00020971,2]
[356997900,1743552632908,-500.0,0.00020971,2]
[356997901,1743552632918,-500.0,0.00020971,2]
[356997902,1743552632927,-500.0,0.00020971,2]
[356997903,1743552632937,-500.0,0.00020971,2]
[356997904,1743552632947,-500.0,0.00020971,2]
[356997905,1743552632957,-500.0,0.00020971,2]
[356997906,1743552632971,-153.54,0.00020971,2]
[356997907,1743552632981,-500.0,0.00020971,2]
[356997908,1743552632991,-220.83,0.00020971,2]
[356997909,1743552633001,-500.0,0.00020971,2]
[356997910,1743552633010,-500.0,0.00020971,2]
[356997911,1743552633019,-500.0,0.00020971,2]
[356997912,1743552633028,-500.0,0.00020971,2]
[356997913,1743552633036,-500.0,0.00020972,2]
[356997914,1743552633044,-500.0,0.00020972,2]
[356997915,1743552633053,-500.0,0.00020972,2]
[356997916,1743552633063,-500.0,0.00020972,2]
[356997917,1743552633073,-500.0,0.00020972,2]
[356997918,1743552633083,-500.0,0.00020972,2]
[356997919,1743552633092,-157.95988042,0.00020973,2]
[356997920,1743552633102,-500.0,0.00020973,2]
[356997921,1743552633112,-275.8177914,0.00020973,2]
[356997922,1743552633122,-500.0,0.00020973,2]
[356997923,1743552633132,-500.0,0.00020973,2]
[356997924,1743552633142,-598.09930283,0.00020973,2]
[356997925,1743552633153,-500.0,0.00020973,2]
[356997926,1743552633163,-500.0,0.00020973,2]
[356997927,1743552633173,-500.0,0.00020973,2]
[356997928,1743552633183,-500.0,0.00020973,2]
[356997929,1743552633193,-500.0,0.00020988,2]
[356997930,1743552633203,-500.0,0.00020988,2]
[356997931,1743552633213,-500.0,0.00020988,2]
[356997932,1743552633223,-188.0,0.00020988,2]
[356997933,1743552633233,-500.0,0.00020988,2]
[356997934,1743552633244,-500.0,0.00020989,2]
[356997935,1743552633259,-195.37058478,0.00020989,2]
[356997936,1743552633269,-167.32078122,0.00020989,2]
[356997937,1743552633278,-12976.11278968,0.0002099,3]
[356997938,1743552633289,-2522.48100734,0.0002099,3]
[356997939,1743552633299,-370000.0,0.0002099,2]
[356997940,1743552633308,-3000.0,0.00021,2]
[356997941,1743552633318,-3000.0,0.0002101,2]
[356997942,1743552633328,-3000.0,0.0002102,2]
[356997943,1743552633338,-3000.0,0.0002103,2]
[356997944,1743552633350,-3000.0,0.0002104,2]
[356997945,1743552633359,-3000.0,0.0002105,2]
[356997946,1743552633368,-3000.0,0.0002106,2]
[356997947,1743552633378,-3000.0,0.0002107,2]
[356997948,1743552633387,-3000.0,0.0002108,2]
[356997949,1743552633397,-3000.0,0.0002109,2]
[356997950,1743552633407,-3000.0,0.000211,2]
[356997951,1743552633417,-3000.0,0.0002111,2]
[356997952,1743552633426,-3000.0,0.0002112,2]
[356997953,1743552633435,-3000.0,0.0002113,2]
[356997954,1743552633446,-3000.0,0.0002114,2]
[356997955,1743552633455,-3000.0,0.0002115,2]
[356997956,1743552633465,-3000.0,0.0002116,2]
[356997957,1743552633475,-3000.0,0.0002117,2]
[356997958,1743552633485,-3469.86041,0.0002118,2]
[356997959,1743552633495,-500.0,0.00021245,2]
[356997960,1743552633504,-500.0,0.00021245,2]
[356997961,1743552633514,-500.0,0.00021245,2]
[356997962,1743552633524,-500.0,0.00021245,2]
[356997963,1743552633534,-500.0,0.00021245,2]
[356997964,1743552633544,-500.0,0.00021245,2]
[356997965,1743552633554,-500.0,0.00021245,2]
[356997966,1743552633564,-500.0,0.00021245,2]
[356997967,1743552633575,-500.0,0.00021245,2]
[356997968,1743552633587,-500.0,0.00021245,2]
[356997969,1743552633596,-500.0,0.00021245,2]
[356997970,1743552633606,-500.0,0.00021245,2]
[356997971,1743552633618,-500.0,0.00021246,2]
[356997972,1743552633629,-500.0,0.00021246,2]
[356997973,1743552633640,-500.0,0.00021246,2]
[356997974,1743552633651,-500.0,0.00021246,2]
[356997975,1743552633662,-500.0,0.00021246,2]
[356997976,1743552633672,-500.0,0.00021262,2]
[356997977,1743552633682,-500.0,0.00021262,2]